[Event "Titled Tuesday Blitz May 03 Late 2022"]
[White "Redzisz, Michal"]
[Black "Gurevich, Dmitry"]
[WhiteFideId "21816107"]
[BlackFideId "2000407"]
[WhiteElo "2014"]
[BlackElo "2506"]
[Result "1/2-1/2"]
[Round "02"]
[TimeControl "180+1"]
[Date "2022.05.03"]
[WhiteClock "0:01:54"]
[BlackClock "0:00:41"]

1. Nf3 {[%clk 0:02:59]}  Nf6 {[%clk 0:02:57]} 2. b3 {[%clk 0:03:00]}  g6 {[%clk 0:02:52]} 3. Bb2 {[%clk 0:03:00]}  Bg7 {[%clk 0:02:52]} 4. e3 {[%clk 0:03:01]}  O-O {[%clk 0:02:51]} 5. Be2 {[%clk 0:03:01]}  d6 {[%clk 0:02:51]} 6. O-O {[%clk 0:03:01]}  c5 {[%clk 0:02:49]} 7. c4 {[%clk 0:03:02]}  e5 {[%clk 0:02:46]} 8. Nc3 {[%clk 0:03:02]}  Nc6 {[%clk 0:02:45]} 9. d3 {[%clk 0:03:02]}  Re8 {[%clk 0:02:43]} 10. Qc2 {[%clk 0:03:03]}  b6 {[%clk 0:02:39]} 11. a3 {[%clk 0:03:02]}  d5 {[%clk 0:02:38]} 12. cxd5 {[%clk 0:03:02]}  Nxd5 {[%clk 0:02:38]} 13. Nxd5 {[%clk 0:03:02]}  Qxd5 {[%clk 0:02:38]} 14. Rfd1 {[%clk 0:03:00]}  Bb7 {[%clk 0:02:36]} 15. Qc4 {[%clk 0:02:59]}  Qxc4 {[%clk 0:02:30]} 16. dxc4 {[%clk 0:02:59]}  e4 {[%clk 0:02:30]} 17. Bxg7 {[%clk 0:02:51]}  exf3 {[%clk 0:02:29]} 18. Bxf3 {[%clk 0:02:51]}  Kxg7 {[%clk 0:02:28]} 19. Rd7 {[%clk 0:02:52]}  Ne5 {[%clk 0:02:13]} 20. Rxb7 {[%clk 0:02:50]}  Nxf3+ {[%clk 0:02:13]} 21. gxf3 {[%clk 0:02:51]}  Red8 {[%clk 0:02:12]} 22. b4 {[%clk 0:02:45]}  Rd2 {[%clk 0:02:01]} 23. bxc5 {[%clk 0:02:45]}  bxc5 {[%clk 0:02:00]} 24. Rc7 {[%clk 0:02:46]}  Rb8 {[%clk 0:01:58]} 25. Rxc5 {[%clk 0:02:46]}  Rbb2 {[%clk 0:01:57]} 26. Rf1 {[%clk 0:02:45]}  Rd6 {[%clk 0:01:40]} 27. Ra5 {[%clk 0:02:45]}  a6 {[%clk 0:01:39]} 28. c5 {[%clk 0:02:42]}  Rd5 {[%clk 0:01:34]} 29. Rxa6 {[%clk 0:02:41]}  Rg5+ {[%clk 0:01:30]} 30. Kh1 {[%clk 0:02:41]}  Rxc5 {[%clk 0:01:31]} 31. f4 {[%clk 0:02:40]}  Ra2 {[%clk 0:01:25]} 32. Kg2 {[%clk 0:02:38]}  Rc3 {[%clk 0:01:24]} 33. Kf3 {[%clk 0:02:38]}  Rcxa3 {[%clk 0:01:22]} 34. Rxa3 {[%clk 0:02:38]}  Rxa3 {[%clk 0:01:22]} 35. Rd1 {[%clk 0:02:39]}  Ra5 {[%clk 0:01:23]} 36. Rd7 {[%clk 0:02:39]}  Kf6 {[%clk 0:01:21]} 37. Rb7 {[%clk 0:02:39]}  Rc5 {[%clk 0:01:20]} 38. Ke4 {[%clk 0:02:38]}  Rc4+ {[%clk 0:01:19]} 39. Kf3 {[%clk 0:02:38]}  Rc5 {[%clk 0:01:18]} 40. Rb6+ {[%clk 0:02:38]}  Kg7 {[%clk 0:01:18]} 41. Kg4 {[%clk 0:02:36]}  Rh5 {[%clk 0:01:17]} 42. h4 {[%clk 0:02:35]}  Ra5 {[%clk 0:01:16]} 43. f3 {[%clk 0:02:34]}  Ra1 {[%clk 0:01:11]} 44. e4 {[%clk 0:02:32]}  Rg1+ {[%clk 0:01:08]} 45. Kh3 {[%clk 0:02:32]}  Rh1+ {[%clk 0:01:08]} 46. Kg3 {[%clk 0:02:32]}  Rg1+ {[%clk 0:01:07]} 47. Kh2 {[%clk 0:02:32]}  Re1 {[%clk 0:01:05]} 48. e5 {[%clk 0:02:27]}  Kf8 {[%clk 0:01:01]} 49. Rb8+ {[%clk 0:02:26]}  Ke7 {[%clk 0:00:59]} 50. Kg3 {[%clk 0:02:19]}  Rg1+ {[%clk 0:00:58]} 51. Kf2 {[%clk 0:02:19]}  Rh1 {[%clk 0:00:58]} 52. Rb7+ {[%clk 0:02:19]}  Ke6 {[%clk 0:00:57]} 53. Rb6+ {[%clk 0:02:19]}  Ke7 {[%clk 0:00:57]} 54. Kg3 {[%clk 0:02:18]}  Rg1+ {[%clk 0:00:56]} 55. Kh2 {[%clk 0:02:18]}  Re1 {[%clk 0:00:55]} 56. h5 {[%clk 0:02:09]}  Re2+ {[%clk 0:00:47]} 57. Kg3 {[%clk 0:02:09]}  Re1 {[%clk 0:00:47]} 58. hxg6 {[%clk 0:02:08]}  hxg6 {[%clk 0:00:46]} 59. f5 {[%clk 0:01:57]}  gxf5 {[%clk 0:00:44]} 60. Kf4 {[%clk 0:01:56]}  Rf1 {[%clk 0:00:42]} 61. Rb7+ {[%clk 0:01:53]}  Ke6 {[%clk 0:00:41]} 62. Rb6+ {[%clk 0:01:53]}  Ke7 {[%clk 0:00:41]} 63. Rb7+ {[%clk 0:01:53]}  Ke6 {[%clk 0:00:41]} 64. Rb6+ {[%clk 0:01:54]}  Ke7 {[%clk 0:00:41]} 1/2-1/2


[Site "https://www.chess.com"]

[Event "Titled Tuesday Blitz May 03 Late 2022"]
[White "Remolar Gallen, Jose"]
[Black "Sanchez Alvares, Kelvin Antonio"]
[WhiteFideId "2215187"]
[BlackFideId "3906680"]
[WhiteElo "2205"]
[BlackElo "2193"]
[Result "0-1"]
[Round "02"]
[TimeControl "180+1"]
[Date "2022.05.03"]
[WhiteClock "0:00:03"]
[BlackClock "0:00:14"]

1. d4 {[%clk 0:03:00]}  Nf6 {[%clk 0:02:59]} 2. Nf3 {[%clk 0:03:01]}  c5 {[%clk 0:02:58]} 3. d5 {[%clk 0:03:00]}  g6 {[%clk 0:02:58]} 4. c4 {[%clk 0:03:00]}  Bg7 {[%clk 0:02:57]} 5. Nc3 {[%clk 0:03:01]}  O-O {[%clk 0:02:57]} 6. e4 {[%clk 0:03:01]}  d6 {[%clk 0:02:57]} 7. Bd3 {[%clk 0:03:01]}  e6 {[%clk 0:02:57]} 8. O-O {[%clk 0:03:01]}  exd5 {[%clk 0:02:58]} 9. cxd5 {[%clk 0:03:01]}  a6 {[%clk 0:02:58]} 10. a4 {[%clk 0:03:00]}  Bg4 {[%clk 0:02:58]} 11. h3 {[%clk 0:03:00]}  Bxf3 {[%clk 0:02:53]} 12. Qxf3 {[%clk 0:03:01]}  Nbd7 {[%clk 0:02:53]} 13. Qg3 {[%clk 0:02:40]}  Ne8 {[%clk 0:02:51]} 14. Bg5 {[%clk 0:02:33]}  Bf6 {[%clk 0:02:32]} 15. Bxf6 {[%clk 0:02:24]}  Qxf6 {[%clk 0:02:33]} 16. Rad1 {[%clk 0:02:20]}  Kh8 {[%clk 0:02:22]} 17. f4 {[%clk 0:02:17]}  Qd4+ {[%clk 0:02:13]} 18. Kh1 {[%clk 0:02:13]}  c4 {[%clk 0:02:10]} 19. Bb1 {[%clk 0:02:11]}  Qc5 {[%clk 0:02:02]} 20. e5 {[%clk 0:02:07]}  f5 {[%clk 0:01:56]} 21. Rfe1 {[%clk 0:01:28]}  b5 {[%clk 0:01:51]} 22. Ne2 {[%clk 0:00:56]}  Ng7 {[%clk 0:01:29]} 23. Nd4 {[%clk 0:00:40]}  Rae8 {[%clk 0:01:11]} 24. Nc6 {[%clk 0:00:28]}  dxe5 {[%clk 0:00:58]} 25. fxe5 {[%clk 0:00:29]}  f4 {[%clk 0:00:53]} 26. Qc3 {[%clk 0:00:29]}  f3 {[%clk 0:00:45]} 27. gxf3 {[%clk 0:00:10]}  Qf2 {[%clk 0:00:44]} 28. Rf1 {[%clk 0:00:10]}  Qg3 {[%clk 0:00:44]} 29. f4 {[%clk 0:00:10]}  Qh4 {[%clk 0:00:39]} 30. e6 {[%clk 0:00:08]}  Nf6 {[%clk 0:00:37]} 31. Kg2 {[%clk 0:00:07]}  Nfh5 {[%clk 0:00:34]} 32. f5 {[%clk 0:00:03]}  gxf5 {[%clk 0:00:30]} 33. Kh2 {[%clk 0:00:03]}  f4 {[%clk 0:00:27]} 34. Rf3 {[%clk 0:00:03]}  Ng3 {[%clk 0:00:21]} 35. Rg1 {[%clk 0:00:03]}  Qf6 {[%clk 0:00:15]} 36. Qxf6 {[%clk 0:00:03]}  Rxf6 {[%clk 0:00:16]} 37. Kg2 {[%clk 0:00:02]}  N3f5 {[%clk 0:00:15]} 38. Re1 {[%clk 0:00:02]}  Ne3+ {[%clk 0:00:15]} 39. Kf2 {[%clk 0:00:02]}  Nxd5 {[%clk 0:00:15]} 40. Nd4 {[%clk 0:00:01]}  Nc7 {[%clk 0:00:14]} 41. axb5 {[%clk 0:00:01]}  Nxb5 {[%clk 0:00:14]} 42. Nxb5 {[%clk 0:00:01]}  axb5 {[%clk 0:00:14]} 43. e7 {[%clk 0:00:02]}  Rf7 {[%clk 0:00:15]} 44. Re4 {[%clk 0:00:01]}  Rexe7 {[%clk 0:00:15]} 45. Rexf4 {[%clk 0:00:02]}  Rxf4 {[%clk 0:00:14]} 46. Rxf4 {[%clk 0:00:03]}  Kg8 {[%clk 0:00:15]} 47. Be4 {[%clk 0:00:03]}  Ne6 {[%clk 0:00:15]} 48. Bd5 {[%clk 0:00:03]}  Kg7 {[%clk 0:00:15]} 49. Rg4+ {[%clk 0:00:03]}  Kf6 {[%clk 0:00:15]} 50. Rh4 {[%clk 0:00:03]}  Ng5 {[%clk 0:00:15]} 51. Bg2 {[%clk 0:00:01]}  Kg6 {[%clk 0:00:15]} 52. Rg4 {[%clk 0:00:02]}  h5 {[%clk 0:00:15]} 53. Rf4 {[%clk 0:00:02]}  Rf7 {[%clk 0:00:15]} 54. Rxf7 {[%clk 0:00:02]}  Nxf7 {[%clk 0:00:15]} 55. Ke3 {[%clk 0:00:02]}  Kf5 {[%clk 0:00:15]} 56. Kd4 {[%clk 0:00:03]}  Ne5 {[%clk 0:00:14]} 57. Kc5 {[%clk 0:00:03]}  Nd3+ {[%clk 0:00:14]} 58. Kxb5 {[%clk 0:00:03]}  Nxb2 {[%clk 0:00:15]} 59. Bf3 {[%clk 0:00:03]}  h4 {[%clk 0:00:14]} 60. Kb4 {[%clk 0:00:02]}  Kf4 {[%clk 0:00:14]} 61. Bg4 {[%clk 0:00:03]}  Nd3+ {[%clk 0:00:14]} 62. Kxc4 {[%clk 0:00:03]}  Nf2 {[%clk 0:00:14]} 63. Bd7 {[%clk 0:00:03]}  Kg3 {[%clk 0:00:14]} 64. Kd4 {[%clk 0:00:03]}  Nxh3 {[%clk 0:00:15]} 65. Ke3 {[%clk 0:00:03]}  Nf2 {[%clk 0:00:15]} 66. Ke2 {[%clk 0:00:03]}  Kg2 {[%clk 0:00:14]} 67. Bc6+ {[%clk 0:00:02]}  Kg1 {[%clk 0:00:14]} 68. Bd7 {[%clk 0:00:02]}  Kg2 {[%clk 0:00:14]} 69. Bc6+ {[%clk 0:00:02]}  Kg3 {[%clk 0:00:14]} 70. Bd7 {[%clk 0:00:03]}  Ng4 {[%clk 0:00:14]} 71. Kf1 {[%clk 0:00:03]}  h3 {[%clk 0:00:14]} 72. Bxg4 {[%clk 0:00:03]}  h2 {[%clk 0:00:14]} 0-1


[Site "https://www.chess.com"]

[Event "Titled Tuesday Blitz May 03 Late 2022"]
[White "Romanchuk, Viktor"]
[Black "Gomez Dieguez, David"]
[WhiteFideId "14109271"]
[BlackFideId "22223630"]
[WhiteElo "2242"]
[BlackElo "2115"]
[Result "1/2-1/2"]
[Round "02"]
[TimeControl "180+1"]
[Date "2022.05.03"]
[WhiteClock "0:00:28"]
[BlackClock "0:01:12"]

1. d4 {[%clk 0:03:00]}  Nf6 {[%clk 0:02:59]} 2. c4 {[%clk 0:03:00]}  e6 {[%clk 0:02:59]} 3. Nc3 {[%clk 0:03:00]}  Bb4 {[%clk 0:03:00]} 4. e3 {[%clk 0:03:00]}  O-O {[%clk 0:02:59]} 5. Ne2 {[%clk 0:03:00]}  c6 {[%clk 0:02:59]} 6. a3 {[%clk 0:02:59]}  Ba5 {[%clk 0:03:00]} 7. Qc2 {[%clk 0:03:00]}  d5 {[%clk 0:02:59]} 8. Ng3 {[%clk 0:03:00]}  Nbd7 {[%clk 0:02:55]} 9. Be2 {[%clk 0:03:00]}  dxc4 {[%clk 0:02:53]} 10. Bxc4 {[%clk 0:03:00]}  Bc7 {[%clk 0:02:54]} 11. O-O {[%clk 0:02:59]}  e5 {[%clk 0:02:54]} 12. Rd1 {[%clk 0:02:58]}  exd4 {[%clk 0:02:44]} 13. Rxd4 {[%clk 0:02:57]}  Qe8 {[%clk 0:02:39]} 14. Rh4 {[%clk 0:02:52]}  Ne5 {[%clk 0:02:34]} 15. Ba2 {[%clk 0:02:50]}  Ng6 {[%clk 0:02:34]} 16. Rd4 {[%clk 0:02:47]}  Be5 {[%clk 0:02:03]} 17. Rd2 {[%clk 0:02:38]}  Be6 {[%clk 0:02:03]} 18. b3 {[%clk 0:02:11]}  Rd8 {[%clk 0:02:02]} 19. Rxd8 {[%clk 0:02:08]}  Qxd8 {[%clk 0:02:02]} 20. Bb2 {[%clk 0:02:09]}  Qb8 {[%clk 0:01:58]} 21. Rd1 {[%clk 0:02:07]}  Rd8 {[%clk 0:01:58]} 22. Rxd8+ {[%clk 0:02:04]}  Qxd8 {[%clk 0:01:59]} 23. b4 {[%clk 0:01:26]}  Bxa2 {[%clk 0:01:58]} 24. Nxa2 {[%clk 0:01:25]}  Bxb2 {[%clk 0:01:58]} 25. Qxb2 {[%clk 0:01:26]}  Qd5 {[%clk 0:01:56]} 26. Nc3 {[%clk 0:01:23]}  Qd3 {[%clk 0:01:44]} 27. h3 {[%clk 0:01:20]}  h6 {[%clk 0:01:44]} 28. Kh2 {[%clk 0:01:11]}  Ne5 {[%clk 0:01:44]} 29. a4 {[%clk 0:00:55]}  Nc4 {[%clk 0:01:44]} 30. Qc1 {[%clk 0:00:54]}  Nd5 {[%clk 0:01:31]} 31. Nxd5 {[%clk 0:00:52]}  Qxd5 {[%clk 0:01:32]} 32. Qc3 {[%clk 0:00:48]}  b5 {[%clk 0:01:29]} 33. axb5 {[%clk 0:00:46]}  cxb5 {[%clk 0:01:29]} 34. e4 {[%clk 0:00:43]}  Qd6 {[%clk 0:01:15]} 35. Kg1 {[%clk 0:00:30]}  Qd1+ {[%clk 0:01:13]} 36. Kh2 {[%clk 0:00:30]}  Qd6 {[%clk 0:01:13]} 37. Kg1 {[%clk 0:00:27]}  Qd1+ {[%clk 0:01:12]} 38. Kh2 {[%clk 0:00:28]}  Qd6 {[%clk 0:01:12]} 1/2-1/2


[Site "https://www.chess.com"]

[Event "Titled Tuesday Blitz May 03 Late 2022"]
[White "Rytenko, Vsevolod"]
[Black "Ferreira, Vitor Hugo Vieira"]
[WhiteFideId "14133040"]
[BlackFideId "2119765"]
[WhiteElo "2744"]
[BlackElo "2515"]
[Result "1-0"]
[Round "02"]
[TimeControl "180+1"]
[Date "2022.05.03"]
[WhiteClock "0:00:16"]
[BlackClock "0:00:10"]

1. d4 {[%clk 0:03:00]}  d5 {[%clk 0:02:53]} 2. c4 {[%clk 0:03:01]}  c6 {[%clk 0:02:53]} 3. Nf3 {[%clk 0:03:02]}  Nf6 {[%clk 0:02:53]} 4. g3 {[%clk 0:03:02]}  dxc4 {[%clk 0:02:50]} 5. Bg2 {[%clk 0:03:02]}  Bf5 {[%clk 0:02:49]} 6. O-O {[%clk 0:03:02]}  e6 {[%clk 0:02:50]} 7. Ne5 {[%clk 0:03:02]}  h6 {[%clk 0:02:48]} 8. Nc3 {[%clk 0:03:02]}  Nbd7 {[%clk 0:02:48]} 9. Nxc4 {[%clk 0:03:01]}  Be7 {[%clk 0:02:47]} 10. e4 {[%clk 0:03:00]}  Bh7 {[%clk 0:02:47]} 11. d5 {[%clk 0:03:01]}  cxd5 {[%clk 0:02:45]} 12. exd5 {[%clk 0:03:01]}  exd5 {[%clk 0:02:45]} 13. Nxd5 {[%clk 0:03:01]}  O-O {[%clk 0:02:43]} 14. Nxe7+ {[%clk 0:02:56]}  Qxe7 {[%clk 0:02:43]} 15. Bf4 {[%clk 0:02:49]}  Qb4 {[%clk 0:02:36]} 16. Rc1 {[%clk 0:02:46]}  Rfd8 {[%clk 0:02:27]} 17. Bd6 {[%clk 0:02:34]}  Qb5 {[%clk 0:02:16]} 18. a4 {[%clk 0:02:17]}  Qa6 {[%clk 0:02:15]} 19. b4 {[%clk 0:02:17]}  Nb6 {[%clk 0:02:10]} 20. b5 {[%clk 0:02:14]}  Qxa4 {[%clk 0:02:10]} 21. Nxb6 {[%clk 0:02:10]}  Qxd1 {[%clk 0:02:10]} 22. Rfxd1 {[%clk 0:02:10]}  axb6 {[%clk 0:02:10]} 23. Bxb7 {[%clk 0:02:11]}  Ra5 {[%clk 0:01:50]} 24. Bc7 {[%clk 0:02:10]}  Rxd1+ {[%clk 0:01:49]} 25. Rxd1 {[%clk 0:02:11]}  Be4 {[%clk 0:01:49]} 26. Bxe4 {[%clk 0:01:52]}  Nxe4 {[%clk 0:01:48]} 27. Rd8+ {[%clk 0:01:17]}  Kh7 {[%clk 0:01:47]} 28. Rd7 {[%clk 0:01:17]}  Kg6 {[%clk 0:01:46]} 29. f3 {[%clk 0:01:16]}  Nf6 {[%clk 0:01:42]} 30. Rd6 {[%clk 0:01:14]}  Rxb5 {[%clk 0:01:41]} 31. Bxb6 {[%clk 0:01:14]}  Kf5 {[%clk 0:01:32]} 32. Bd4 {[%clk 0:01:11]}  Rb1+ {[%clk 0:01:05]} 33. Kg2 {[%clk 0:01:11]}  Rd1 {[%clk 0:01:04]} 34. g4+ {[%clk 0:01:08]}  Kg6 {[%clk 0:00:57]} 35. h4 {[%clk 0:01:08]}  Kh7 {[%clk 0:00:51]} 36. Kf2 {[%clk 0:01:02]}  Ne8 {[%clk 0:00:47]} 37. Rd8 {[%clk 0:01:02]}  Nc7 {[%clk 0:00:42]} 38. Ke2 {[%clk 0:00:53]}  Ne6 {[%clk 0:00:41]} 39. Kxd1 {[%clk 0:00:51]}  Nxd8 {[%clk 0:00:41]} 40. Ke2 {[%clk 0:00:52]}  Ne6 {[%clk 0:00:39]} 41. Be5 {[%clk 0:00:52]}  Nc5 {[%clk 0:00:34]} 42. Ke3 {[%clk 0:00:52]}  Nd7 {[%clk 0:00:34]} 43. Ke4 {[%clk 0:00:48]}  Nc5+ {[%clk 0:00:26]} 44. Kd5 {[%clk 0:00:45]}  Ne6 {[%clk 0:00:27]} 45. f4 {[%clk 0:00:39]}  g6 {[%clk 0:00:23]} 46. Kd6 {[%clk 0:00:32]}  Kg8 {[%clk 0:00:18]} 47. Ke7 {[%clk 0:00:32]}  Nc5 {[%clk 0:00:16]} 48. Bd4 {[%clk 0:00:17]}  Ne6 {[%clk 0:00:15]} 49. Be3 {[%clk 0:00:16]}  Nf8 {[%clk 0:00:14]} 50. f5 {[%clk 0:00:16]}  gxf5 {[%clk 0:00:13]} 51. gxf5 {[%clk 0:00:17]}  Kg7 {[%clk 0:00:10]} 52. Bxh6+ {[%clk 0:00:13]}  Kxh6 {[%clk 0:00:10]} 53. Kxf8 {[%clk 0:00:14]}  f6 {[%clk 0:00:08]} 54. Kf7 {[%clk 0:00:14]}  Kh5 {[%clk 0:00:08]} 55. Kxf6 {[%clk 0:00:14]}  Kxh4 {[%clk 0:00:09]} 56. Ke7 {[%clk 0:00:14]}  Kg5 {[%clk 0:00:10]} 57. f6 {[%clk 0:00:15]}  Kg6 {[%clk 0:00:10]} 58. f7 {[%clk 0:00:16]} 1-0


[Site "https://www.chess.com"]

[Event "Titled Tuesday Blitz May 03 Late 2022"]
[White "Senthilkumar, Pranav"]
[Black "Winkels, Marcel"]
[WhiteFideId "2083477"]
[BlackFideId "1003887"]
[WhiteElo "2458"]
[BlackElo "1900"]
[Result "0-1"]
[Round "02"]
[TimeControl "180+1"]
[Date "2022.05.03"]
[WhiteClock "0:01:26"]
[BlackClock "0:00:20"]

1. Nf3 {[%clk 0:03:00]}  d5 {[%clk 0:02:58]} 2. d4 {[%clk 0:03:00]}  Nf6 {[%clk 0:02:55]} 3. c4 {[%clk 0:03:00]}  c6 {[%clk 0:02:52]} 4. Nc3 {[%clk 0:03:00]}  a6 {[%clk 0:02:52]} 5. c5 {[%clk 0:02:57]}  g6 {[%clk 0:02:49]} 6. e3 {[%clk 0:02:54]}  Bg7 {[%clk 0:02:48]} 7. Bd3 {[%clk 0:02:53]}  O-O {[%clk 0:02:48]} 8. O-O {[%clk 0:02:53]}  Nbd7 {[%clk 0:02:46]} 9. b4 {[%clk 0:02:52]}  e5 {[%clk 0:02:38]} 10. dxe5 {[%clk 0:02:49]}  Ng4 {[%clk 0:02:37]} 11. Bb2 {[%clk 0:02:46]}  Ngxe5 {[%clk 0:02:36]} 12. Nxe5 {[%clk 0:02:46]}  Nxe5 {[%clk 0:02:36]} 13. Bc2 {[%clk 0:02:46]}  Qh4 {[%clk 0:02:22]} 14. Ne2 {[%clk 0:02:33]}  Ng4 {[%clk 0:02:15]} 15. h3 {[%clk 0:02:25]}  Bxb2 {[%clk 0:02:11]} 16. hxg4 {[%clk 0:02:24]}  Bxg4 {[%clk 0:01:47]} 17. Rb1 {[%clk 0:02:24]}  Be5 {[%clk 0:01:45]} 18. f4 {[%clk 0:02:17]}  Bg7 {[%clk 0:01:40]} 19. Qd2 {[%clk 0:02:17]}  Rae8 {[%clk 0:01:31]} 20. Rbe1 {[%clk 0:02:16]}  Rd8 {[%clk 0:01:22]} 21. Nd4 {[%clk 0:02:15]}  Rfe8 {[%clk 0:01:18]} 22. f5 {[%clk 0:02:11]}  Be5 {[%clk 0:01:14]} 23. Nf3 {[%clk 0:02:04]}  Bxf3 {[%clk 0:01:13]} 24. gxf3 {[%clk 0:02:04]}  Qg3+ {[%clk 0:00:59]} 25. Qg2 {[%clk 0:02:00]}  Qxg2+ {[%clk 0:00:58]} 26. Kxg2 {[%clk 0:02:00]}  d4 {[%clk 0:00:57]} 27. exd4 {[%clk 0:01:58]}  Bxd4 {[%clk 0:00:56]} 28. fxg6 {[%clk 0:01:59]}  hxg6 {[%clk 0:00:55]} 29. Bb3 {[%clk 0:01:51]}  Bc3 {[%clk 0:00:52]} 30. Re4 {[%clk 0:01:51]}  Rxe4 {[%clk 0:00:42]} 31. fxe4 {[%clk 0:01:52]}  Rd7 {[%clk 0:00:41]} 32. a3 {[%clk 0:01:48]}  Bb2 {[%clk 0:00:40]} 33. e5 {[%clk 0:01:48]}  Bxe5 {[%clk 0:00:37]} 34. Rf3 {[%clk 0:01:47]}  Kg7 {[%clk 0:00:33]} 35. Bc4 {[%clk 0:01:45]}  f5 {[%clk 0:00:32]} 36. Rb3 {[%clk 0:01:39]}  Rd2+ {[%clk 0:00:30]} 37. Kf3 {[%clk 0:01:38]}  Rc2 {[%clk 0:00:28]} 38. Bd3 {[%clk 0:01:37]}  Rc3 {[%clk 0:00:28]} 39. Rxc3 {[%clk 0:01:33]}  Bxc3 {[%clk 0:00:28]} 40. Ke3 {[%clk 0:01:30]}  Bb2 {[%clk 0:00:28]} 41. a4 {[%clk 0:01:30]}  Ba3 {[%clk 0:00:28]} 42. b5 {[%clk 0:01:30]}  axb5 {[%clk 0:00:27]} 43. axb5 {[%clk 0:01:30]}  Bxc5+ {[%clk 0:00:27]} 44. Kd2 {[%clk 0:01:30]}  cxb5 {[%clk 0:00:26]} 45. Bxb5 {[%clk 0:01:30]}  Kf6 {[%clk 0:00:26]} 46. Ke2 {[%clk 0:01:31]}  Ke5 {[%clk 0:00:25]} 47. Kf3 {[%clk 0:01:32]}  g5 {[%clk 0:00:24]} 48. Be8 {[%clk 0:01:31]}  g4+ {[%clk 0:00:22]} 49. Kg2 {[%clk 0:01:31]}  Be3 {[%clk 0:00:22]} 50. Bb5 {[%clk 0:01:31]}  Kf4 {[%clk 0:00:22]} 51. Bd7 {[%clk 0:01:30]}  b6 {[%clk 0:00:22]} 52. Bb5 {[%clk 0:01:28]}  Kg5 {[%clk 0:00:23]} 53. Bd7 {[%clk 0:01:27]}  f4 {[%clk 0:00:23]} 54. Kh1 {[%clk 0:01:27]}  g3 {[%clk 0:00:23]} 55. Bc6 {[%clk 0:01:27]}  Kg4 {[%clk 0:00:22]} 56. Kg2 {[%clk 0:01:27]}  Bf2 {[%clk 0:00:21]} 57. Bf3+ {[%clk 0:01:26]}  Kg5 {[%clk 0:00:20]} 58. Bc6 {[%clk 0:01:27]}  Kf6 {[%clk 0:00:19]} 59. Kf3 {[%clk 0:01:27]}  Ke5 {[%clk 0:00:20]} 60. Bb5 {[%clk 0:01:25]}  Kd6 {[%clk 0:00:19]} 61. Bf1 {[%clk 0:01:23]}  Kc5 {[%clk 0:00:19]} 62. Kxf4 {[%clk 0:01:23]}  b5 {[%clk 0:00:19]} 63. Kf3 {[%clk 0:01:22]}  Kd4 {[%clk 0:00:16]} 64. Ke2 {[%clk 0:01:22]}  Kc3 {[%clk 0:00:17]} 65. Kd1 {[%clk 0:01:22]}  b4 {[%clk 0:00:17]} 66. Kc1 {[%clk 0:01:23]}  b3 {[%clk 0:00:18]} 67. Kb1 {[%clk 0:01:23]}  b2 {[%clk 0:00:17]} 68. Bg2 {[%clk 0:01:23]}  Bd4 {[%clk 0:00:16]} 69. Be4 {[%clk 0:01:23]}  Kd2 {[%clk 0:00:16]} 70. Bd5 {[%clk 0:01:22]}  Ke3 {[%clk 0:00:16]} 71. Kc2 {[%clk 0:01:23]}  Kf2 {[%clk 0:00:16]} 72. Kb1 {[%clk 0:01:23]}  g2 {[%clk 0:00:16]} 73. Bxg2 {[%clk 0:01:23]}  Kxg2 {[%clk 0:00:17]} 74. Ka2 {[%clk 0:01:24]}  Kf2 {[%clk 0:00:18]} 75. Kb1 {[%clk 0:01:24]}  Ke3 {[%clk 0:00:18]} 76. Kc2 {[%clk 0:01:25]}  Ke2 {[%clk 0:00:18]} 77. Kb1 {[%clk 0:01:25]}  Kd2 {[%clk 0:00:19]} 78. Ka2 {[%clk 0:01:26]}  Kc3 {[%clk 0:00:19]} 79. Kb1 {[%clk 0:01:26]}  Be3 {[%clk 0:00:19]} 80. Ka2 {[%clk 0:01:26]}  Kc2 {[%clk 0:00:20]} 81. Ka3 {[%clk 0:01:26]}  b1=Q {[%clk 0:00:20]} 82. Ka4 {[%clk 0:01:26]}  Qb3+ {[%clk 0:00:20]} 0-1


[Site "https://www.chess.com"]

[Event "Titled Tuesday Blitz May 03 Late 2022"]
[White "Skytte, Rasmus"]
[Black "Wachinger, Guenther"]
[WhiteFideId "1404210"]
[BlackFideId "4604261"]
[WhiteElo "2430"]
[BlackElo "2212"]
[Result "0-1"]
[Round "02"]
[TimeControl "180+1"]
[Date "2022.05.03"]
[WhiteClock "0:00:05"]
[BlackClock "0:00:37"]

1. e4 {[%clk 0:02:54]}  c5 {[%clk 0:02:56]} 2. Nf3 {[%clk 0:02:53]}  d6 {[%clk 0:02:56]} 3. d4 {[%clk 0:02:52]}  cxd4 {[%clk 0:02:57]} 4. Nxd4 {[%clk 0:02:53]}  Nf6 {[%clk 0:02:56]} 5. Nc3 {[%clk 0:02:48]}  g6 {[%clk 0:02:57]} 6. Be3 {[%clk 0:02:26]}  Bg7 {[%clk 0:02:56]} 7. Qd2 {[%clk 0:02:20]}  O-O {[%clk 0:02:55]} 8. f3 {[%clk 0:02:18]}  Nc6 {[%clk 0:02:53]} 9. O-O-O {[%clk 0:02:11]}  d5 {[%clk 0:02:52]} 10. Qe1 {[%clk 0:01:42]}  e5 {[%clk 0:02:44]} 11. Nxc6 {[%clk 0:01:21]}  bxc6 {[%clk 0:02:41]} 12. Bc5 {[%clk 0:01:14]}  d4 {[%clk 0:02:05]} 13. Bxf8 {[%clk 0:01:00]}  Qxf8 {[%clk 0:02:06]} 14. Na4 {[%clk 0:00:47]}  Rb8 {[%clk 0:02:04]} 15. Bc4 {[%clk 0:00:37]}  Be6 {[%clk 0:01:52]} 16. Bxe6 {[%clk 0:00:31]}  fxe6 {[%clk 0:01:53]} 17. b3 {[%clk 0:00:30]}  Qa3+ {[%clk 0:01:51]} 18. Kd2 {[%clk 0:00:28]}  Nh5 {[%clk 0:01:32]} 19. g3 {[%clk 0:00:20]}  Rf8 {[%clk 0:01:14]} 20. Rf1 {[%clk 0:00:19]}  Bh6+ {[%clk 0:01:12]} 21. Kd3 {[%clk 0:00:18]}  c5 {[%clk 0:01:10]} 22. Kc4 {[%clk 0:00:18]}  Rb8 {[%clk 0:01:00]} 23. Qa5 {[%clk 0:00:13]}  Rb4+ {[%clk 0:00:57]} 24. Kd3 {[%clk 0:00:12]}  c4+ {[%clk 0:00:57]} 25. Ke2 {[%clk 0:00:11]}  Rb8 {[%clk 0:00:43]} 26. Qc7 {[%clk 0:00:10]}  Rf8 {[%clk 0:00:41]} 27. Qe7 {[%clk 0:00:10]}  Qxe7 {[%clk 0:00:40]} 28. bxc4 {[%clk 0:00:09]}  Qb4 {[%clk 0:00:38]} 29. Kd3 {[%clk 0:00:08]}  Qxa4 {[%clk 0:00:37]} 30. c5 {[%clk 0:00:09]}  Qa3+ {[%clk 0:00:38]} 31. Kc4 {[%clk 0:00:09]}  Qa4+ {[%clk 0:00:35]} 32. Kd3 {[%clk 0:00:08]}  Qa6+ {[%clk 0:00:35]} 33. c4 {[%clk 0:00:06]}  Qa3+ {[%clk 0:00:36]} 34. Kc2 {[%clk 0:00:06]}  Qc3+ {[%clk 0:00:36]} 35. Kb1 {[%clk 0:00:05]}  Rb8# {[%clk 0:00:37]} 0-1


[Site "https://www.chess.com"]